fUST/lending_fUST_20250530
["ID","MTS","AMOUNT","RATE_DAILY","PERIOD"]
[362987719,1748544636628,-430.0,0.00019452,2]
[362987720,1748544636638,-430.0,0.00019452,2]
[362987721,1748544636647,-430.0,0.00019452,2]
[362987722,1748544636657,-430.0,0.00019452,2]
[362987723,1748544636667,-430.0,0.00019452,2]
[362987724,1748544636677,-3302.48,0.00019452,2]
[362987725,1748544636687,-430.0,0.00019452,2]
[362987726,1748544636696,-528.69128461,0.00019452,2]
[362987727,1748544636706,-430.0,0.00019452,2]
[362987728,1748544636715,-1308.9849705,0.00019452,2]
[362987729,1748544636775,-2306.48195544,0.00019452,2]
[362987760,1748544637875,-430.0,0.00019178,2]
[362987762,1748544637887,-430.0,0.00019178,2]
[362987764,1748544637898,-246.77268036,0.00019178,2]
[362987767,1748544637914,-183.22731964,0.00019178,2]
[362987769,1748544637926,-430.0,0.00019178,2]
[362987770,1748544637940,-430.0,0.00019178,2]
[362987772,1748544637956,-1182.07307406,0.00019452,2]
[362987774,1748544637970,-2050.84,0.00019452,2]
[362987776,1748544637984,-430.0,0.00019452,2]
[362987779,1748544637997,-430.0,0.00019452,2]
[362987781,1748544638010,-430.0,0.00019452,2]
[362987783,1748544638025,-430.0,0.00019452,2]
[362987786,1748544638037,-2506.55645794,0.00019452,2]
[362987787,1748544638052,-865.46590737,0.00019452,2]
[362987801,1748544638185,-110.28981049,0.00019452,2]
[362987804,1748544638201,-3341.2578242,0.00019452,2]
[362987806,1748544638213,-8016.39,0.00019452,2]
[362987809,1748544638225,-430.0,0.00019452,2]
[362987811,1748544638237,-430.0,0.00019452,2]
[362987813,1748544638248,-3759.17,0.00019452,2]
[362987815,1748544638259,-430.0,0.00019452,2]
[362987818,1748544638272,-9010.07,0.00019452,2]
[362987820,1748544638284,-1130.1,0.00019452,2]
[362987822,1748544638296,-457.68042314,0.00019452,2]
[362987825,1748544638308,-3158.87,0.00019452,2]
[362987827,1748544638322,-430.0,0.00019452,2]
[362987829,1748544638334,-430.0,0.00019452,2]
[362987832,1748544638346,-264.02194693,0.00019452,2]
[362987834,1748544638358,-430.0,0.00019452,2]
[362987836,1748544638371,-430.0,0.00019452,2]
[362987838,1748544638382,-430.0,0.00019452,2]
[362987841,1748544638395,-9431.91,0.00019452,2]
[362987843,1748544638408,-3431.33,0.00019452,2]
[362987845,1748544638419,-430.0,0.00019452,2]
[362987847,1748544638431,-430.0,0.00019452,2]
[362987850,1748544638443,-430.0,0.00019452,2]
[362987852,1748544638455,-464.89371656,0.00019452,2]
[362987854,1748544638468,-4892.96,0.00019452,2]
[362987857,1748544638480,-430.0,0.00019452,2]
[362987859,1748544638492,-430.0,0.00019452,2]
[362987861,1748544638502,-1053.47,0.00019452,2]
[362987863,1748544638511,-430.0,0.00019452,2]
[362987865,1748544638520,-430.0,0.00019452,2]
[362987867,1748544638529,-430.0,0.00019452,2]
[362987869,1748544638538,-430.0,0.00019452,2]
[362987871,1748544638547,-430.0,0.00019452,2]
[362987873,1748544638557,-430.0,0.00019452,2]
[362987875,1748544638566,-430.0,0.00019452,2]
[362987877,1748544638579,-1281.76,0.00019452,2]
[362987879,1748544638588,-6690.93,0.00019452,2]
[362987881,1748544638598,-430.0,0.00019452,2]
[362987883,1748544638607,-1894.48,0.00019452,2]
[362987885,1748544638616,-430.0,0.00019452,2]
[362987887,1748544638626,-1020.7,0.00019452,2]
[362987906,1748544638798,-430.0,0.00019452,2]
[362987909,1748544638817,-480.35623866,0.00019452,2]
[362987911,1748544638828,-430.0,0.00019452,2]
[362987913,1748544638837,-430.0,0.00019452,2]
[362987915,1748544638847,-6170.99,0.00019452,2]
[362987917,1748544638856,-524.33,0.00019452,2]
[362987919,1748544638865,-430.0,0.00019452,2]
[362987921,1748544638875,-430.0,0.00019452,2]
[362987923,1748544638884,-430.0,0.00019452,2]
[362987925,1748544638893,-309.13487948,0.00019452,2]
[362987927,1748544638903,-430.0,0.00019452,2]
[362987929,1748544638912,-306.68088597,0.00019453,2]
[362987931,1748544638921,-500.0,0.00019473,2]
[362987933,1748544638930,-500.0,0.00019473,2]
[362987935,1748544638942,-500.0,0.00019473,2]
[362987937,1748544638952,-500.0,0.00019473,2]
[362987939,1748544638961,-500.0,0.00019473,2]
[362987941,1748544638971,-500.0,0.00019473,2]
[362987943,1748544638981,-500.0,0.00019473,2]
[362987945,1748544638990,-623.67696814,0.00019473,2]
[362987947,1748544639000,-500.0,0.00019479,2]
[362987949,1748544639009,-5102.84911284,0.00019489,2]
[362987951,1748544639020,-26166.16384427,0.000195,2]
[362987953,1748544639029,-151.0,0.000195,2]
[362987955,1748544639038,-548.0,0.00019507,2]
[362987957,1748544639048,-151.0,0.000196,2]
[362987959,1748544639057,-5102.84911284,0.00019626,2]
[362987961,1748544639067,-2806.4,0.00019662,2]
[362987963,1748544639076,-2806.4,0.00019662,2]
[362987965,1748544639086,-2806.4,0.00019662,2]
[362987967,1748544639094,-2806.4,0.00019662,2]
[362987969,1748544639104,-2806.4,0.00019662,2]
[362987971,1748544639113,-2806.4,0.00019662,2]
[362987973,1748544639121,-2806.4,0.00019662,2]
[362987975,1748544639130,-2806.4,0.00019662,2]
[362987977,1748544639139,-151.0,0.000197,2]
[362987979,1748544639148,-430.0,0.00019725,2]
[362987981,1748544639156,-430.0,0.00019725,2]
[362987983,1748544639165,-3430.51,0.00019725,2]
[362987985,1748544639174,-430.0,0.00019725,2]
[362987987,1748544639182,-4082.61,0.00019725,2]
[362987989,1748544639191,-430.0,0.00019725,2]
[362987991,1748544639200,-513.4,0.00019725,2]
[362987993,1748544639209,-11031.57,0.00019725,2]
[362987995,1748544639218,-430.0,0.00019725,2]
[362987997,1748544639227,-1108.2,0.00019725,2]
[362987999,1748544639235,-430.0,0.00019725,2]
[362988001,1748544639245,-5166.95,0.00019725,2]
[362988003,1748544639253,-430.0,0.00019725,2]
[362988005,1748544639262,-314.78059479,0.00019725,3]
[362988007,1748544639270,-12660.97845086,0.00019725,3]
[362988009,1748544639279,-212.70147903,0.00019725,3]
[362988011,1748544639288,-25818.82424845,0.00019725,3]
[362988013,1748544639297,-386772.27486071,0.00019726,2]
[362988015,1748544639307,-430.0,0.00019726,2]
[362988017,1748544639316,-430.0,0.00019726,2]
[362988019,1748544639326,-430.0,0.00019726,2]
[362988021,1748544639336,-430.0,0.00019726,2]
[362988023,1748544639345,-430.0,0.00019726,2]
[362988025,1748544639355,-343.84605592,0.00019726,2]
[362988027,1748544639364,-430.0,0.00019726,2]
[362988029,1748544639373,-424.66,0.00019726,2]
[362988031,1748544639382,-515.92957885,0.00019726,2]
[362988033,1748544639392,-340.0,0.00019726,2]
[362988035,1748544639401,-430.0,0.00019726,2]
[362988037,1748544639411,-430.0,0.00019726,2]
[362988039,1748544639419,-487.35543612,0.00019726,2]
[362988041,1748544639429,-430.0,0.00019726,2]
[362988043,1748544639439,-430.0,0.00019726,2]
[362988045,1748544639448,-220.0,0.00019726,2]
[362988047,1748544639458,-430.0,0.00019726,2]
[362988049,1748544639467,-430.0,0.00019726,2]
[362988051,1748544639476,-430.0,0.00019726,2]
[362988054,1748544639486,-430.0,0.00019726,2]
[362988057,1748544639495,-430.0,0.00019726,2]
[362988058,1748544639504,-430.0,0.00019726,2]
[362988061,1748544639514,-332.94994507,0.00019726,2]
[362988063,1748544639523,-430.0,0.00019726,2]
[362988065,1748544639532,-430.0,0.00019726,2]
[362988067,1748544639542,-430.0,0.00019726,2]
[362988069,1748544639551,-430.0,0.00019726,2]
[362988071,1748544639560,-3111.65,0.00019726,2]
[362988073,1748544639571,-430.0,0.00019726,2]
[362988075,1748544639580,-430.0,0.00019726,2]
[362988077,1748544639589,-500.08,0.00019726,2]
[362988079,1748544639599,-430.0,0.00019726,2]
[362988081,1748544639608,-430.0,0.00019726,2]
[362988083,1748544639617,-430.0,0.00019726,2]
[362988084,1748544639628,-490.0,0.00019726,2]
[362988086,1748544639638,-430.0,0.00019726,2]
[362988089,1748544639648,-430.0,0.00019726,2]
[362988090,1748544639658,-564.19115529,0.00019726,2]
[362988093,1748544639669,-470.0,0.00019726,2]
[362988094,1748544639678,-430.0,0.00019726,2]
[362988096,1748544639688,-430.0,0.00019726,2]
[362988099,1748544639699,-756.66,0.00019726,2]
[362988100,1748544639709,-430.0,0.00019726,2]
[362988103,1748544639718,-430.0,0.00019726,2]
[362988104,1748544639727,-430.0,0.00019726,2]
[362988106,1748544639737,-430.0,0.00019726,2]
[362988108,1748544639746,-331.54265223,0.00019726,2]
[362988110,1748544639755,-430.0,0.00019726,2]
[362988112,1748544639765,-430.0,0.00019726,2]
[362988114,1748544639774,-430.0,0.00019726,2]
[362988116,1748544639783,-555.41,0.00019726,2]
[362988118,1748544639793,-430.0,0.00019726,2]
[362988120,1748544639802,-430.0,0.00019726,2]
[362988123,1748544639812,-521.84,0.00019726,2]
[362988125,1748544639823,-508.35614709,0.00019726,2]
[362988126,1748544639832,-430.0,0.00019726,2]
[362988129,1748544639842,-430.0,0.00019726,2]
[362988130,1748544639851,-430.0,0.00019726,2]
[362988133,1748544639860,-430.0,0.00019726,2]
[362988135,1748544639870,-439.13,0.00019726,2]
[362988137,1748544639880,-6308.76,0.00019726,2]
[362988139,1748544639889,-430.0,0.00019726,2]
[362988141,1748544639899,-733.34,0.00019726,2]
[362988142,1748544639908,-514.96000003,0.00019726,2]
[362988144,1748544639917,-430.0,0.00019726,2]
[362988146,1748544639926,-433.14646771,0.00019726,2]
[362988148,1748544639940,-430.0,0.00019726,2]
[362988150,1748544639949,-430.0,0.00019726,2]
[362988152,1748544639958,-174.49,0.00019726,2]
[362988154,1748544639968,-430.0,0.00019726,2]
[362988156,1748544639978,-430.0,0.00019726,2]
[362988158,1748544639987,-430.0,0.00019726,2]
[362988160,1748544639997,-430.0,0.00019726,2]
[362988162,1748544640007,-430.0,0.00019726,2]
[362988164,1748544640016,-404.26522277,0.00019726,2]
[362988166,1748544640026,-430.0,0.00019726,2]
[362988169,1748544640036,-430.0,0.00019726,2]
[362988171,1748544640046,-7913.47,0.00019726,2]
[362988172,1748544640055,-430.0,0.00019726,2]
[362988175,1748544640065,-430.0,0.00019726,2]
[362988177,1748544640076,-430.0,0.00019726,2]
[362988179,1748544640085,-430.0,0.00019726,2]
[362988181,1748544640095,-430.0,0.00019726,2]
[362988183,1748544640105,-430.0,0.00019726,2]
[362988185,1748544640114,-254.14470734,0.00019726,2]
[362988187,1748544640123,-430.0,0.00019726,2]
[362988189,1748544640132,-430.0,0.00019726,2]
[362988191,1748544640142,-430.0,0.00019726,2]
[362988193,1748544640151,-430.0,0.00019726,2]
[362988195,1748544640160,-2960.37,0.00019726,2]
[362988197,1748544640169,-1557.95,0.00019726,2]
[362988199,1748544640179,-430.0,0.00019726,2]
[362988201,1748544640188,-430.0,0.00019726,2]
[362988202,1748544640197,-1565.84,0.00019726,2]
[362988203,1748544640206,-430.0,0.00019726,2]
[362988204,1748544640215,-430.0,0.00019726,2]
[362988205,1748544640224,-1684.87,0.00019726,2]
[362988206,1748544640234,-171.58,0.00019726,2]
[362988207,1748544640243,-862.22,0.00019726,2]
[362988208,1748544640252,-627.42,0.00019726,2]
[362988209,1748544640262,-581.49,0.00019726,2]
[362988210,1748544640271,-374.79,0.00019726,2]
[362988211,1748544640280,-939.28,0.00019726,2]
[362988212,1748544640292,-430.0,0.00019726,2]
[362988213,1748544640301,-430.0,0.00019726,2]
[362988214,1748544640310,-430.0,0.00019726,2]
[362988215,1748544640319,-430.0,0.00019726,2]
[362988216,1748544640329,-776.76,0.00019726,2]
[362988217,1748544640338,-430.0,0.00019726,2]
[362988218,1748544640348,-5200.91,0.00019726,2]
[362988219,1748544640357,-3779.83,0.00019726,2]
[362988220,1748544640367,-430.0,0.00019726,2]
[362988221,1748544640376,-430.0,0.00019726,2]
[362988222,1748544640386,-430.0,0.00019726,2]
[362988223,1748544640396,-430.0,0.00019726,2]
[362988224,1748544640405,-430.0,0.00019726,2]
[362988226,1748544640414,-430.0,0.00019726,2]
[362988228,1748544640424,-3302.48,0.00019726,2]
[362988230,1748544640433,-430.0,0.00019726,2]
[362988232,1748544640442,-430.0,0.00019726,2]
[362988234,1748544640451,-4797.54,0.00019726,2]
[362988236,1748544640460,-2050.84,0.00019726,2]
[362988238,1748544640469,-430.0,0.00019726,2]
[362988240,1748544640479,-430.0,0.00019726,2]
[362988242,1748544640488,-430.0,0.00019726,2]
[362988244,1748544640497,-442.82451361,0.00019726,2]
[362988246,1748544640506,-6823.57,0.00019726,2]
[362988248,1748544640515,-8016.39,0.00019726,2]
[362988250,1748544640525,-430.0,0.00019726,2]
[362988252,1748544640534,-3759.17,0.00019726,2]
[362988254,1748544640544,-430.0,0.00019726,2]
[362988256,1748544640553,-9010.07,0.00019726,2]
[362988258,1748544640563,-1130.1,0.00019726,2]
[362988260,1748544640572,-3158.87,0.00019726,2]
[362988261,1748544640583,-430.0,0.00019726,2]
[362988264,1748544640592,-430.0,0.00019726,2]
[362988265,1748544640601,-430.0,0.00019726,2]
[362988267,1748544640611,-430.0,0.00019726,2]
[362988269,1748544640620,-430.0,0.00019726,2]
[362988271,1748544640629,-9431.91,0.00019726,2]
[362988273,1748544640639,-3431.33,0.00019726,2]
[362988275,1748544640648,-430.0,0.00019726,2]
[362988277,1748544640657,-430.0,0.00019726,2]
[362988279,1748544640667,-430.0,0.00019726,2]
[362988281,1748544640676,-4892.96,0.00019726,2]
[362988283,1748544640686,-430.0,0.00019726,2]
[362988285,1748544640695,-430.0,0.00019726,2]
[362988287,1748544640704,-1053.47,0.00019726,2]
[362988289,1748544640714,-566.85609671,0.00019726,2]
[362988291,1748544640723,-430.0,0.00019726,2]
[362988293,1748544640732,-430.0,0.00019726,2]
[362988295,1748544640741,-525.09977558,0.00019726,2]
[362988297,1748544640751,-430.0,0.00019726,2]
[362988299,1748544640761,-430.0,0.00019726,2]
[362988302,1748544640770,-1281.76,0.00019726,2]
[362988304,1748544640779,-6690.93,0.00019726,2]
[362988305,1748544640790,-430.0,0.00019726,2]
[362988307,1748544640799,-1894.48,0.00019726,2]
[362988310,1748544640809,-430.0,0.00019726,2]
[362988312,1748544640819,-1020.7,0.00019726,2]
[362988314,1748544640829,-191.65,0.00019726,2]
[362988316,1748544640839,-430.0,0.00019726,2]
[362988318,1748544640848,-293.43755113,0.00019726,2]
[362988319,1748544640857,-6170.99,0.00019726,2]
[362988322,1748544640867,-524.33,0.00019726,2]
[362988324,1748544640877,-430.0,0.00019726,2]
[362988325,1748544640886,-430.0,0.00019726,2]
[362988328,1748544640896,-430.0,0.00019726,2]
[362988330,1748544640906,-201.86901151,0.00019726,2]
[362988332,1748544640915,-5102.84911284,0.00019763,2]
[362988334,1748544640929,-500.0,0.00019773,2]
[362988336,1748544640940,-500.0,0.00019773,2]
[362988338,1748544640949,-500.0,0.00019773,2]
[362988339,1748544640958,-500.0,0.00019773,2]
[362988341,1748544640968,-151.0,0.000198,2]
[362988343,1748544640978,-151.0,0.000198,2]
[362988346,1748544640988,-151.0,0.000198,2]
[362988347,1748544640997,-859.55,0.000198,2]
[362988350,1748544641007,-629.75984394,0.00019883,2]
[362988351,1748544641018,-151.0,0.000199,2]
[362988353,1748544641027,-151.0,0.000199,2]
[362988355,1748544641037,-151.0,0.000199,2]
[362988357,1748544641046,-5102.84911284,0.000199,2]
[362988359,1748544641055,-6630.1085509,0.000199,2]
[362988361,1748544641065,-151.0,0.000199,2]
[362988363,1748544641076,-472.28148531,0.00019907,2]
[362988366,1748544641085,-500.0,0.00019973,2]
[362988367,1748544641094,-500.0,0.00019973,2]
[362988369,1748544641103,-500.0,0.00019973,2]
[362988372,1748544641114,-430.0,0.00019999,2]
[362988374,1748544641123,-430.0,0.00019999,2]
[362988375,1748544641132,-3430.51,0.00019999,2]
[362988377,1748544641141,-430.0,0.00019999,2]
[362988380,1748544641151,-4082.61,0.00019999,2]
[362988382,1748544641161,-430.0,0.00019999,2]
[362988383,1748544641170,-513.4,0.00019999,2]
[362988386,1748544641180,-11031.57,0.00019999,2]
[362988388,1748544641190,-430.0,0.00019999,2]
[362988389,1748544641199,-1108.2,0.00019999,2]
[362988391,1748544641209,-430.0,0.00019999,2]
[362988394,1748544641219,-5166.95,0.00019999,2]
[362988396,1748544641228,-430.0,0.00019999,2]
[362988397,1748544641238,-842.5625,0.00019999,3]
[362988400,1748544641250,-1362.54240735,0.0002,30]
[362988401,1748544641259,-210690.55009492,0.0002,2]
[362988403,1748544641270,-430.0,0.0002,2]
[362988406,1748544641279,-430.0,0.0002,2]
[362988407,1748544641288,-332.23135741,0.0002,2]
[362988409,1748544641297,-533.59,0.0002,2]
[362988412,1748544641307,-430.0,0.0002,2]
[362988413,1748544641316,-190.0,0.0002,2]
[362988415,1748544641326,-430.0,0.0002,2]
[362988417,1748544641335,-430.0,0.0002,2]
[362988419,1748544641345,-430.0,0.0002,2]
[362988421,1748544641355,-430.0,0.0002,2]
[362988423,1748544641365,-222.54170922,0.0002,2]
[362988425,1748544641374,-151.0,0.0002,2]
[362988427,1748544641383,-430.0,0.0002,2]
[362988441,1748544641506,-430.0,0.0002,2]
[362988443,1748544641515,-233.168931,0.0002,2]
[362988445,1748544641524,-233.168931,0.0002,2]
[362988447,1748544641534,-401.39806111,0.0002,2]
[362988449,1748544641543,-735.945635,0.0002,2]
[362988451,1748544641552,-370.67598761,0.0002,4]
[362988453,1748544641562,-735.945635,0.0002,2]
[362988455,1748544641571,-151.0,0.0002,2]
[362988457,1748544641580,-430.0,0.0002,2]
[362988459,1748544641590,-151.0,0.0002,2]
[362988461,1748544641599,-413.55,0.0002,2]
[362988463,1748544641608,-151.0,0.0002,2]
[362988465,1748544641618,-151.0,0.0002,2]
[362988467,1748544641627,-430.0,0.0002,2]
[362988469,1748544641646,-430.0,0.0002,2]
[362988471,1748544641661,-186.311019,0.0002,2]
[362988473,1748544641670,-186.311019,0.0002,2]
[362988475,1748544641679,-3111.65,0.0002,2]
[362988477,1748544641689,-439.61465491,0.0002,2]
[362988479,1748544641699,-430.0,0.0002,2]
[362988481,1748544641708,-500.08,0.0002,2]
[362988483,1748544641717,-151.0,0.0002,2]
[362988485,1748544641726,-430.0,0.0002,2]
[362988487,1748544641735,-430.0,0.0002,2]
[362988489,1748544641745,-300.0,0.0002,2]
[362988491,1748544641754,-547.18906685,0.0002,2]
[362988493,1748544641763,-430.0,0.0002,2]
[362988495,1748544641772,-1006.774129,0.0002,2]
[362988497,1748544641782,-430.0,0.0002,2]
[362988499,1748544641791,-430.0,0.0002,2]
[362988501,1748544641801,-1006.774129,0.0002,2]
[362988503,1748544641811,-151.0,0.0002,2]
[362988505,1748544641824,-756.66,0.0002,2]
[362988507,1748544641841,-510.0,0.0002,2]
[362988509,1748544641852,-151.0,0.0002,2]
[362988511,1748544641862,-430.0,0.0002,2]
[362988513,1748544641871,-236.955466,0.0002,2]
[362988515,1748544641881,-430.0,0.0002,2]
[362988517,1748544641891,-236.955466,0.0002,2]
[362988519,1748544641902,-430.0,0.0002,2]
[362988521,1748544641912,-151.0,0.0002,2]
[362988523,1748544641922,-151.0,0.0002,2]
[362988525,1748544641932,-430.0,0.0002,2]
[362988527,1748544641943,-430.0,0.0002,2]
[362988529,1748544641956,-342.862776,0.0002,2]
[362988531,1748544641966,-555.41,0.0002,2]
[362988533,1748544641975,-342.862776,0.0002,2]
[362988534,1748544641984,-430.0,0.0002,2]
[362988536,1748544641994,-430.0,0.0002,2]
[362988538,1748544642004,-521.84,0.0002,2]
[362988540,1748544642013,-151.0,0.0002,2]
[362988542,1748544642022,-151.0,0.0002,2]
[362988544,1748544642032,-430.0,0.0002,2]
[362988546,1748544642041,-430.0,0.0002,2]
[362988548,1748544642051,-238.957691,0.0002,2]
[362988550,1748544642061,-430.0,0.0002,2]
[362988552,1748544642070,-238.957691,0.0002,2]
[362988554,1748544642079,-430.0,0.0002,2]
[362988556,1748544642089,-1274.434918,0.0002,2]
[362988558,1748544642099,-1274.434918,0.0002,2]
[362988560,1748544642109,-439.13,0.0002,2]
[362988562,1748544642119,-6308.76,0.0002,2]
[362988564,1748544642127,-430.0,0.0002,2]
[362988566,1748544642137,-733.34,0.0002,2]
[362988568,1748544642146,-430.0,0.0002,2]
[362988570,1748544642155,-430.0,0.0002,2]
[362988572,1748544642165,-430.0,0.0002,2]
[362988574,1748544642174,-430.0,0.0002,2]
[362988576,1748544642183,-430.0,0.0002,2]
[362988578,1748544642192,-430.0,0.0002,2]
[362988580,1748544642201,-430.0,0.0002,2]
[362988582,1748544642211,-530.0,0.0002,2]
[362988584,1748544642220,-7913.47,0.0002,2]
[362988586,1748544642229,-430.0,0.0002,2]
[362988588,1748544642238,-430.0,0.0002,2]
[362988590,1748544642247,-430.0,0.0002,2]
[362988592,1748544642257,-430.0,0.0002,2]
[362988594,1748544642267,-430.0,0.0002,2]
[362988596,1748544642275,-430.0,0.0002,2]
[362988598,1748544642284,-510.0,0.0002,2]
[362988600,1748544642295,-430.0,0.0002,2]
[362988602,1748544642304,-430.0,0.0002,2]
[362988604,1748544642313,-2960.37,0.0002,2]
[362988606,1748544642324,-1557.95,0.0002,2]
[362988608,1748544642333,-430.0,0.0002,2]
[362988610,1748544642343,-430.0,0.0002,2]
[362988612,1748544642353,-1318.463387,0.0002,2]
[362988614,1748544642363,-1565.84,0.0002,2]
[362988616,1748544642372,-430.0,0.0002,2]
[362988618,1748544642382,-430.0,0.0002,2]
[362988620,1748544642392,-1318.463387,0.0002,2]
[362988622,1748544642402,-1684.87,0.0002,2]
[362988624,1748544642412,-3001.0,0.0002,2]
[362988626,1748544642421,-3001.0,0.0002,2]
[362988629,1748544642431,-3001.0,0.0002,2]
[362988632,1748544642440,-3001.0,0.0002,2]
[362988635,1748544642450,-862.22,0.0002,2]
[362988637,1748544642459,-3001.0,0.0002,2]
[362988639,1748544642468,-3001.0,0.0002,2]
[362988642,1748544642478,-3001.0,0.0002,2]
[362988644,1748544642487,-627.42,0.0002,2]
[362988646,1748544642496,-3001.0,0.0002,2]
[362988648,1748544642506,-581.49,0.0002,2]
[362988650,1748544642516,-3001.0,0.0002,2]
[362988652,1748544642525,-939.28,0.0002,2]
[362988654,1748544642535,-430.0,0.0002,2]
[362988656,1748544642544,-430.0,0.0002,2]
[362988658,1748544642554,-430.0,0.0002,2]
[362988660,1748544642564,-430.0,0.0002,2]
[362988662,1748544642576,-168.8914,0.0002,2]
[362988663,1748544642586,-776.76,0.0002,2]
[362988666,1748544642595,-430.0,0.0002,2]
[362988669,1748544642604,-5200.91,0.0002,2]
[362988672,1748544642614,-168.8914,0.0002,2]
[362988674,1748544642623,-3779.83,0.0002,2]
[362988676,1748544642632,-430.0,0.0002,2]
[362988678,1748544642642,-430.0,0.0002,2]
[362988680,1748544642652,-430.0,0.0002,2]
[362988682,1748544642661,-337.35910415,0.0002,2]
[362988684,1748544642670,-430.0,0.0002,2]
[362988686,1748544642680,-430.0,0.0002,2]
[362988688,1748544642690,-3302.48,0.0002,2]
[362988690,1748544642699,-430.0,0.0002,2]
[362988692,1748544642708,-4797.54,0.0002,2]
[362988694,1748544642718,-2050.84,0.0002,2]
[362988696,1748544642728,-280.06987646,0.0002,2]
[362988698,1748544642737,-6823.57,0.0002,2]
[362988700,1748544642746,-151.0,0.0002,2]
[362988702,1748544642755,-8016.39,0.0002,2]
[362988704,1748544642765,-3759.17,0.0002,2]
[362988706,1748544642774,-430.0,0.0002,2]
[362988708,1748544642784,-9010.07,0.0002,2]
[362988710,1748544642793,-1130.1,0.0002,2]
[362988712,1748544642802,-3001.0,0.0002,2]
[362988714,1748544642811,-3158.87,0.0002,2]
[362988716,1748544642820,-430.0,0.0002,2]
[362988718,1748544642829,-430.0,0.0002,2]
[362988720,1748544642838,-430.0,0.0002,2]
[362988722,1748544642847,-9431.91,0.0002,2]
[362988723,1748544642856,-3431.33,0.0002,2]
[362988725,1748544642865,-430.0,0.0002,2]
[362988727,1748544642875,-430.0,0.0002,2]
[362988729,1748544642884,-430.0,0.0002,2]
[362988732,1748544642893,-4892.96,0.0002,2]
[362988734,1748544642903,-430.0,0.0002,2]
[362988735,1748544642912,-430.0,0.0002,2]
[362988738,1748544642922,-1053.47,0.0002,2]
[362988740,1748544642931,-430.0,0.0002,2]
[362988742,1748544642944,-430.0,0.0002,2]
[362988744,1748544642953,-430.0,0.0002,2]
[362988746,1748544642962,-430.0,0.0002,2]
[362988748,1748544642972,-1281.76,0.0002,2]
[362988750,1748544642982,-6690.93,0.0002,2]
[362988752,1748544642992,-430.0,0.0002,2]
[362988754,1748544643002,-1894.48,0.0002,2]
[362988756,1748544643011,-430.0,0.0002,2]
[362988758,1748544643024,-1020.7,0.0002,2]
[362988760,1748544643033,-430.0,0.0002,2]
[362988762,1748544643043,-151.0,0.0002,2]
[362988764,1748544643052,-524.33,0.0002,2]
[362988766,1748544643061,-6170.99,0.0002,2]
[362988768,1748544643070,-2403.0,0.0002,2]
[362988770,1748544643080,-430.0,0.0002,2]